[Event "LEM Niedersachsen-A-Open 2025"]
[Site "Verden"]
[Date "2025.01.04"]
[Round "6.1"]
[White "Kieselbach, Marvin"]
[Black "Weigand, Anton"]
[Result "0-1"]
[ECO "B30"]
[WhiteElo "2008"]
[BlackElo "2092"]
[Annotator "TA"]
[PlyCount "86"]
[EventDate "2024.12.27"]
[EventType "swiss"]
[EventCountry "GER"]
[SourceTitle "playchess.com"]
[Source "ChessBase"]
[SourceQuality "1"]
[TimeControl "40/5400+30:1800+30"]

{[%evp 11,86,37,36,31,39,29,31,39,31,35,49,9,13,8,20,0,0,-67,-81,-98,-102,-113,-110,-101,-106,-172,-164,-227,-226,-219,-220,-207,-227,-288,-295,-322,-140,-142,-142,-147,-140,-143,-150,-142,-135,-134,-144,-138,-136,-140,-148,-154,-144,-197,-210,-208,-193,-224,-224,-191,-200,-658,-424,-424,-658,-456,-424,-348,-326,-5057,-326,-5073,-5077,-4446,-1691,-6103,-5673]} 1. e4 {[%emt 0:00:21]} c5 {[%emt 0:00:05]} 2. Nf3 {[%emt 0:00:56]} Nc6 {[%emt 0:00:13][%cal Bb8c6,Bc6d4,Bd4f3][%mdl 32]} 3. Nc3 {[%emt 0:00:37]} Nf6 {[%emt 0:00:11]} 4. Bb5 {[%emt 0:00:16]} Qc7 {[%emt 0:00:28]} 5. O-O {[%emt 0:01:24]} Nd4 {[%emt 0:00:03]} 6. Re1 {[%emt 0:00:32]} a6 {[%emt 0:00:08]} 7. Bf1 {[%emt 0:00:21]} Ng4 {[%emt 0:00:18] ( -> ...Nxf3+)} 8. g3 {[%emt 0:07:03] Threatens to win with Nd5.} Nxf3+ $1 {[%emt 0:00:12]} 9. Qxf3 {[%emt 0:00:09]} Ne5 {[%emt 0:00:05]} 10. Qe2 {[%emt 0:02:21]} e6 {[%emt 0:00:11] Dodges Nd5} 11. a4 {[%emt 0:06:21]} h5 {[%emt 0:02:08]} 12. Nd1 {[%emt 0:03:31]} h4 {[%emt 0:03:40]} 13. c3 {[%emt 0:04:24]} hxg3 {[%emt 0:00:54]} 14. fxg3 {[%emt 0:02:00]} (14. hxg3 $11 Nc6 15. Ne3) 14... c4 $15 {[%emt 0:02:08]} 15. b4 {[%emt 0:05:59] Wards off Bc5+} Nd3 {[%emt 0:26:14] Wards off Nb2. Black is more active.} (15... cxb3 16. d4 Nc6 17. Ne3 $15) 16. Ne3 {[%emt 0:00:09][%cal Oe3c4]} Nxe1 {[%emt 0:00:45]} 17. Qxe1 {[%emt 0:00:20]} a5 {[%emt 0:01:12]} 18. Bxc4 {[%emt 0:02:37]} (18. Bb2 $17) 18... axb4 $19 {[%emt 0:00:46]} 19. d4 {[%emt 0:00:10] [#]} (19. Bb2 {was worth a try.}) 19... b5 $1 {[%emt 0:07:14]} 20. Bxb5 {[%emt 0:00:24]} Qxc3 {[%emt 0:00:07]} 21. Qxc3 {[%emt 0:00:43]} bxc3 {[%emt 0:00:06]} 22. Nc4 {[%emt 0:01:17]} Ba6 {[%emt 0:04:18]} 23. Rb1 {[%emt 0:03:58]} c2 {[%emt 0:04:45]} (23... Bxb5 $19 {and Black stays clearly on top.} 24. axb5 Ra2) 24. Rb2 $17 {[%emt 0:01:35][%cal Ob5d7]} Bxb5 {[%emt 0:00:24]} 25. axb5 {[%emt 0:00:55][%cal Ob5b6]} d5 {[%emt 0:07:37]} 26. exd5 {[%emt 0:06:34]} exd5 {[%emt 0:00:37]} 27. Ne3 {[%emt 0:01:49]} Kd7 {[%emt 0:13:49]} 28. Rxc2 {[%emt 0:02:30]} Rb8 {[%emt 0:04:07]} 29. Nxd5 {[%emt 0:07:03]} Rxb5 {[%emt 0:00:14]} 30. Ne3 {[%emt 0:02:04]} Bd6 {[%emt 0:01:26]} 31. Rf2 {[%emt 0:37:37]} f6 {[%emt 0:03:56]} 32. Nf5 {[%emt 0:00:00]} (32. Kg2 $17) 32... Rb1 $19 {[%emt 0:01:06]} 33. Rf1 {[%emt 0:00:00][%cal Of5d6]} Rc8 {[%emt 0:01:03]} 34. Be3 {[%emt 0:00:00]} Rxf1+ {[%emt 0:00:32]} 35. Kxf1 {[%emt 0:00:00]} g6 {[%emt 0:01:31]} 36. Nxd6 $2 {[%emt 0:00:00]} (36. Nh4) 36... Kxd6 {[%emt 0:00:07][%mdl 4096] Endgame KR-KB} 37. Kg2 {[%emt 0:00:00]} Rc2+ {[%emt 0:01:03]} 38. Bf2 {[%emt 0:00:00]} Rc3 {[%emt 0:00:49]} 39. h4 {[%emt 0:00:00]} f5 {[%emt 0:00:18] White must now prevent ...Kd5.} 40. Be1 $2 {[%emt 0:03:01]} (40. g4 fxg4 41. Be1) 40... Rd3 $2 {[%emt 0:00:36]} (40... Rb3 41. g4 fxg4 42. Bg3+ Kd5) 41. Bb4+ $2 {[%emt 0:30:47]} (41. g4 fxg4 (41... Rxd4 42. gxf5 gxf5 43. h5 $17) 42. Bg3+ Ke6 43. Bf4) 41... Kd5 {[%emt 0:30:49]} 42. Bc5 {[%emt 0:00:00]} Ke4 {[%emt 0:00:00]} 43. Kh3 {[%emt 0:00:00]} f4 {[%emt 0:00:00]} 0-1

[Event "LEM Niedersachsen-A-Open 2025"]
[Site "Verden"]
[Date "2025.01.04"]
[Round "6.2"]
[White "Stotyn, Fabian"]
[Black "Bundan, Edward"]
[Result "1/2-1/2"]
[ECO "B20"]
[WhiteElo "2123"]
[BlackElo "1822"]
[Annotator "TA"]
[PlyCount "129"]
[EventDate "2024.12.27"]
[EventType "swiss"]
[EventCountry "GER"]
[SourceTitle "playchess.com"]
[Source "ChessBase"]
[SourceQuality "1"]
[TimeControl "40/5400+30:1800+30"]

{[%evp 9,129,-33,0,-54,-10,-47,-8,-32,-32,-41,-42,-57,-37,-80,-73,-79,-20,-79,-72,-72,-89,-142,-47,-61,-23,-79,-39,-24,-17,-33,-22,-24,-25,-24,-28,-52,82,-52,133,137,159,156,143,152,160,184,179,183,171,12,12,12,76,0,8,23,296,293,287,55,129,72,171,154,147,66,65,13,35,39,58,30,24,12,196,59,214,210,198,131,131,8,8,0,127,67,165,8,8,8,8,8,8,0,0,0,8,8,8,0,8,8,8,8,8,8,8,8,29973,29974,29984,29985,29986,8,8,8,8,8,8,8,8,0]} 1. e4 {[%emt 0:00:02]} c5 {[%emt 0:00:05]} 2. b3 {[%emt 0:00:03]} e6 {[%emt 0:01:44]} 3. Bb2 {[%emt 0:01:01]} d5 {[%emt 0:00:31]} 4. e5 {[%emt 0:01:18]} Nc6 {[%emt 0:00:49]} 5. Nf3 {[%emt 0:01:58]} g6 {[%emt 0:04:30]} 6. h4 {[%emt 0:02:17]} (6. c3 $11) 6... h5 {[%emt 0:03:02]} 7. Bb5 {[%emt 0:00:34]} Qb6 {[%emt 0:04:53]} 8. Bxc6+ {[%emt 0:04:48]} Qxc6 {[%emt 0:00:41]} 9. d4 {[%emt 0:01:56]} b6 {[%emt 0:02:09]} 10. Qe2 {[%emt 0:06:28] Prevents Ba6} a5 {[%emt 0:07:53]} 11. Nbd2 {[%emt 0:00:34]} Ba6 {[%emt 0:02:28]} 12. c4 {[%emt 0:02:34]} Qc7 {[%emt 0:03:34]} (12... Ne7 $17) 13. Qe3 {[%emt 0:03:08]} (13. Ng5 $11) 13... Bh6 $17 {[%emt 0:01:46]} 14. Ng5 {[%emt 0:01:20]} Ne7 {[%emt 0:11:39]} 15. Qf3 {[%emt 0:05:24]} (15. O-O) 15... Bxg5 {[%emt 0:03:36]} ({Black should play} 15... O-O $17 {and ...cxd4 should not be overlooked} 16. dxc5 bxc5 (16... Qxc5 17. Rc1 $17)) 16. hxg5 $15 {[%emt 0:01:56]} Bb7 {[%emt 0:03:46]} 17. Qf4 {[%emt 0:14:16]} (17. dxc5 $11 bxc5 18. cxd5 Bxd5 19. Ne4) 17... Nf5 {[%emt 0:08:18]} 18. g4 {[%emt 0:02:15]} Nxd4 {[%emt 0:01:32]} 19. Bxd4 {[%emt 0:00:10]} cxd4 {[%emt 0:00:23]} 20. Qf6 {[%emt 0:07:19]} Rh7 $1 {[%emt 0:01:37]} 21. Rh4 {[%emt 0:03:24]} Qe7 {[%emt 0:02:23]} 22. Ke2 {[%emt 0:06:25]} Qb4 {[%emt 0:09:35]} (22... a4 $15 {keeps the upper hand.} 23. Rd1 axb3 24. axb3 Ra2 25. Qxe7+ Kxe7) 23. Rc1 {[%emt 0:05:26]} (23. gxh5 $1 $16 d3+ 24. Kxd3) 23... Rc8 $2 {[%emt 0:03:55]} (23... d3+ $1 $15 24. Kxd3 Rd8) 24. gxh5 $16 {[%emt 0:00:23] White is more active.} Rxh5 {[%emt 0:01:16]} 25. Rxh5 {[%emt 0:00:06]} (25. Rxd4 Qe7 26. Rg1 Qxf6 27. exf6 e5 $11) 25... gxh5 {[%emt 0:00:10]} 26. g6 {[%emt 0:01:45]} fxg6 {[%emt 0:01:19]} 27. Qxe6+ {[%emt 0:00:11]} Qe7 {[%emt 0:02:40]} 28. Qxg6+ {[%emt 0:00:56]} Qf7 {[%emt 0:01:42]} 29. Qxf7+ $2 {[%emt 0:00:38]} (29. Qxb6 $18 d3+ 30. Kxd3) 29... Kxf7 $18 {[%emt 0:00:07][%mdl 4096] Endgame KRB-KRN} 30. Kd3 {[%emt 0:00:42]} dxc4+ {[%emt 0:00:18]} (30... Ke6 $11 {remains equal.}) 31. bxc4 {[%emt 0:00:04]} (31. Nxc4 $16 Ba6 32. Kxd4 Bxc4 33. bxc4 (33. Rxc4 Rc5 $11)) 31... Ke6 {[%emt 0:01:29]} 32. Rb1 {[%emt 0:01:10]} Rc6 $2 {[%emt 0:01:44][%mdl 8192]} (32... Kxe5 $11 33. Rb5+ Kd6) 33. Kxd4 {[%emt 0:00:26]} h4 {[%emt 0:01:01]} 34. Nf3 $2 {[%emt 0:03:12]} (34. Ne4 $18) 34... Ba6 {[%emt 0:09:08]} (34... h3 $1 $14) 35. Rc1 {[%emt 0:01:09]} (35. Nxh4 Rxc4+ 36. Ke3 Rxh4 $11) (35. Ke3 $142 {Strongly threatening Nd4+.} Kf7 36. Nd4 (36. Nxh4 Bxc4 37. Rb2 Be6 $16)) 35... Rc5 {[%emt 0:00:47]} (35... Rc7 $16) 36. Nxh4 {[%emt 0:01:08]} Rxe5 {[%emt 0:00:44]} 37. Ng2 {[%emt 0:10:51]} (37. Rb1 $1 $16 {[%cal Rb1b6]} b5 38. Nf3) 37... Rf5 $14 {[%emt 0:01:08]} 38. Rc2 {[%emt 0:01:04]} (38. Rb1 $14 Kd7 39. Rb2 (39. Rxb6 Bxc4 40. Rb7+ Kd6 $11)) 38... Kd6 {[%emt 0:00:43]} 39. Rd2 {[%emt 0:07:31]} Kc6 {[%emt 0:00:41]} 40. a4 {[%emt 0:01:00]} Rf8 {[%emt 0:00:57]} 41. Ne3 {[%emt 0:30:41]} Rh8 $2 {[%emt 0:33:08]} (41... Rf4+ $1 $11 42. Ke5 Rf3) 42. Nd5 {[%emt 0:00:43]} ({Only move:} 42. f4 $18) 42... Rh4+ $2 {[%emt 0:00:46]} (42... Rh1 $1 $14) 43. f4 $18 {[%emt 0:00:21]} Rh1 {[%emt 0:00:00]} 44. Rd3 {[%emt 0:00:00]} (44. Ne3 $18) 44... Rc1 $16 {[%emt 0:00:00]} 45. Nc3 {[%emt 0:00:00]} ({White should play} 45. Rc3 $1 $16 {[%cal Rc3c1]} Rd1+ 46. Ke5) 45... Rf1 $11 {[%emt 0:00:00]} 46. Nd5 {[%emt 0:00:00]} (46. Ne2 $11) 46... Rc1 $16 {[%emt 0:00:00] [#]} 47. Ne3 {[%emt 0:00:00]} (47. Rc3 $1 $16 {[%cal Rc3c1]} Rf1 48. Re3 Rd1+ 49. Rd3 Rxd3+ 50. Kxd3) 47... Bc8 {[%emt 0:00:00]} (47... Ra1 $14) 48. Rd1 $2 {[%emt 0:00:00]} (48. Rd2 $18) 48... Rxd1+ $11 {[%emt 0:00:00]} 49. Nxd1 {[%emt 0:00:00] KB-KN. White is a pawn up.} Kd6 {[%emt 0:00:00]} 50. Nc3 {[%emt 0:00:00]} Bd7 $1 {[%emt 0:00:00]} 51. Ne4+ {[%emt 0:00:00]} Kc7 {[%emt 0:00:00]} 52. Nc3 {[%emt 0:00:00]} Kd6 {[%emt 0:00:00]} 53. Nb5+ {[%emt 0:00:00]} Kc6 {[%emt 0:00:00]} 54. Nc3 {[%emt 0:00:00]} Kd6 {[%emt 0:00:00]} 55. Nd5 {[%emt 0:00:00]} Bxa4 {[%emt 0:00:00]} 56. Nxb6 {[%emt 0:00:00]} Bc2 {[%emt 0:00:00]} 57. Nd5 {[%emt 0:00:00]} Bh7 {[%emt 0:00:00]} 58. c5+ {[%emt 0:00:00]} Kc6 $2 {[%emt 0:00:00][%mdl 8192] [#]} (58... Ke6 $11) 59. f5 $1 {[%emt 0:00:00][%cal Bf4f5,Bf5f6][%mdl 544]} Kb7 {[%emt 0:00:00]} (59... a4 60. f6) 60. f6 {[%emt 0:00:00]} Bg8 {[%emt 0:00:00] [#]} 61. c6+ $2 {[%emt 0:00:00]} Kxc6 {[%emt 0:00:00]} 62. Ne7+ {[%emt 0:00:00]} Kd6 {[%emt 0:00:00]} 63. Nxg8 {[%emt 0:00:00] Intending f7 and mate.} Ke6 {[%emt 0:00:00]} 64. Kc4 {[%emt 0:00:00]} Kf7 {[%emt 0:00:00]} 65. Kb5 {[%emt 0:00:00]} 1/2-1/2

[Event "LEM Niedersachsen-A-Open 2025"]
[Site "Verden"]
[Date "2025.01.04"]
[Round "6.3"]
[White "Ploog, Martin"]
[Black "Laubsch, Bernd"]
[Result "0-1"]
[ECO "A21"]
[WhiteElo "2001"]
[BlackElo "2215"]
[Annotator "TA"]
[PlyCount "92"]
[EventDate "2024.12.27"]
[EventType "swiss"]
[EventCountry "GER"]
[SourceTitle "playchess.com"]
[Source "ChessBase"]
[SourceQuality "1"]
[TimeControl "40/5400+30:1800+30"]

{[%evp 10,92,22,18,49,35,53,43,53,51,57,11,17,8,11,2,21,-10,32,10,16,10,49,24,36,21,57,39,45,40,29,42,41,41,64,-5,-5,-4,-4,-16,0,-4,-22,-12,0,-49,-14,-209,-123,-150,-52,-68,-54,-189,-156,-145,-125,-120,-133,-171,-170,-294,-314,-317,-312,-381,-387,-375,-353,-434,-431,-417,-396,-372,-355,-377,-339,-860,-818,-1286,-1017,-1017,-1004,-1568,-1554]} 1. c4 {[%emt 0:00:02]} e5 {[%emt 0:00:39]} 2. g3 {[%emt 0:00:17]} g6 {[%emt 0:01:44]} 3. Bg2 {[%emt 0:00:23]} Bg7 {[%emt 0:00:05]} 4. Nc3 {[%emt 0:01:06]} Ne7 {[%emt 0:00:25]} 5. d3 {[%emt 0:00:22]} c6 {[%emt 0:02:52]} 6. e4 {[%emt 0:01:07]} Na6 {[%emt 0:00:39]} 7. Nge2 {[%emt 0:01:15]} Nc7 {[%emt 0:01:20]} 8. O-O {[%emt 0:05:24]} O-O {[%emt 0:04:40] White is slightly better.} 9. d4 {[%emt 0:05:21]} d6 {[%emt 0:01:06]} 10. dxe5 {[%emt 0:05:47]} (10. Re1 $14) 10... dxe5 $11 {[%emt 0:00:12]} 11. Bg5 {[%emt 0:01:32] [#] Strongly threatening Qxd8.} f6 {[%emt 0:02:15]} 12. Be3 {[%emt 0:00:58]} Ne6 {[%emt 0:04:39]} 13. c5 {[%emt 0:02:22]} Qe8 {[%emt 0:05:24]} 14. Qb3 {[%emt 0:03:18]} Qf7 {[%emt 0:00:32]} 15. Rad1 {[%emt 0:01:42]} Nc7 {[%emt 0:07:25]} 16. Qxf7+ {[%emt 0:04:12]} Kxf7 {[%emt 0:01:21]} 17. Rd3 {[%emt 0:04:26]} g5 {[%emt 0:08:42]} 18. f3 {[%emt 0:09:02]} Ng6 {[%emt 0:11:13]} 19. Rfd1 {[%emt 0:03:31][%cal Od3d7]} Re8 {[%emt 0:01:19]} 20. Nc1 {[%emt 0:08:07][%cal Be2c1,Bc1b3,Bb3a5][%mdl 32]} Bf8 {[%emt 0:02:18]} 21. Nb3 {[%emt 0:03:37]} Na6 {[%emt 0:07:44][%cal Bc7a6,Ba6b4,Bb4a2][%mdl 32]} 22. Na4 {[%emt 0:13:30]} (22. a3 $14) 22... Nb4 $1 {[%emt 0:10:01][%csl LRa2,LRd3]} 23. R3d2 {[%emt 0:00:21]} Nxa2 {[%emt 0:00:30]} 24. Na5 {[%emt 0:06:09]} Nb4 {[%emt 0:03:01]} 25. Bf1 {[%emt 0:01:33]} Be7 {[%emt 0:04:43]} 26. Bc4+ {[%emt 0:01:25]} Kg7 {[%emt 0:02:09]} 27. Kf2 {[%emt 0:04:10]} (27. Nc3 $11 {might be stronger.}) 27... Nf8 {[%emt 0:01:48]} 28. f4 $2 {[%emt 0:02:33]} (28. Nc3 $11 {and White stays safe.}) 28... Bg4 {[%emt 0:04:31]} ({Black should play} 28... gxf4 $19 29. gxf4 exf4 30. Bxf4 b6 31. cxb6 axb6 32. Nxc6 Nxc6 (32... Rxa4 33. Nxe7 Rxe7 34. Bd6 $15)) 29. Rg1 {[%emt 0:02:08]} Rab8 {[%emt 0:00:50]} (29... b6 $17 30. h3 (30. cxb6 $2 {perishes.} axb6 31. Nxc6 Nxc6 $19) 30... Bxh3 31. Nxc6 Nxc6) 30. fxg5 $15 {[%emt 0:03:03]} fxg5 {[%emt 0:00:19]} 31. Ke1 {[%emt 0:01:51]} (31. Be2 $15 Be6 32. Bc4) 31... Bd8 {[%emt 0:01:36]} 32. Nb3 {[%emt 0:00:16]} b5 $36 {[%emt 0:03:25][%mdl 2048] Black is really pushing.} 33. cxb6 {[%emt 0:01:20]} axb6 {[%emt 0:00:01] [#] ...b5 would now be deadly.} 34. Be2 {[%emt 0:03:56]} Be6 {[%emt 0:01:02]} 35. Bh5 {[%emt 0:00:21]} (35. Nc1 $142) 35... Bxb3 $19 {[%emt 0:02:30]} 36. Bxe8 {[%emt 0:00:08]} Bxa4 {[%emt 0:00:12]} 37. Rf1 {[%emt 0:00:51]} Nc2+ {[%emt 0:00:53]} 38. Kf2 {[%emt 0:00:23]} Be7 {[%emt 0:01:17]} 39. Bh5 {[%emt 0:01:23]} Nxe3 {[%emt 0:00:52]} 40. Kxe3 {[%emt 0:00:07]} Bc5+ {[%emt 0:00:12]} 41. Kf3 {[%emt 0:30:33]} Bd4 {[%emt 0:33:21]} 42. Kg4 {[%emt 0:01:04]} Bb3 {[%emt 0:00:20] ...Nd7 is the strong threat.} 43. Ra1 $2 {[%emt 0:00:00]} (43. Rf3 Bg8 44. Kxg5) 43... Kh6 {[%emt 0:00:00] Black is clearly winning.} 44. Kf5 {[%emt 0:00:00]} Be6+ {[%emt 0:00:00]} 45. Kf6 {[%emt 0:00:00]} Kxh5 {[%emt 0:00:00]} 46. h3 {[%emt 0:00:00]} Rb7 {[%emt 0:00:00] Weighted Error Value: White=0.76/Black=0.28 (precise) .  Loses game:     	White=1     	---        Mistake:       	White=6     	Black=2      Inaccurate:     	White=2     	Black=4      OK:         	White=8     	Black=13     Best:        	White=2     	Black=2      Strong:       	---       	Black=1} 0-1

[Event "LEM Niedersachsen-A-Open 2025"]
[Site "Verden"]
[Date "2025.01.04"]
[Round "6.4"]
[White "Soellig, Martin"]
[Black "Burkhardt, Holger"]
[Result "0-1"]
[ECO "C61"]
[WhiteElo "1930"]
[BlackElo "2092"]
[Annotator "NA RC"]
[PlyCount "52"]
[EventDate "2024.12.27"]
[EventType "swiss"]
[EventCountry "GER"]
[SourceTitle "playchess.com"]
[Source "ChessBase"]
[SourceQuality "1"]
[TimeControl "40/5400+30:1800+30"]

1. e4 {[%emt 0:00:05]} e5 {[%emt 0:00:05]} 2. Nf3 {[%emt 0:00:08]} Nc6 {[%emt 0:00:05]} 3. Bb5 {[%emt 0:00:14]} Nd4 {[%emt 0:00:08]} 4. Nxd4 {[%emt 0:00:17]} exd4 {[%emt 0:00:03]} 5. O-O {[%emt 0:00:21]} Bc5 {[%emt 0:00:10]} 6. d3 {[%emt 0:01:46]} c6 {[%emt 0:00:11]} 7. Bc4 {[%emt 0:00:23]} d5 {[%emt 0:00:34]} 8. exd5 {[%emt 0:00:52]} cxd5 {[%emt 0:00:08]} 9. Re1+ {[%emt 0:05:54]} Ne7 {[%emt 0:00:27]} 10. Bb5+ {[%emt 0:01:36]} Kf8 {[%emt 0:00:17]} 11. Ba4 {[%emt 1:24:24]} h5 {[%emt 1:33:52]} 12. Bf4 {[%emt 0:00:30]} b5 {[%emt 0:00:30]} 13. Bb3 {[%emt 0:00:00]} a5 {[%emt 0:00:30]} 14. a4 {[%emt 0:01:00]} b4 {[%emt 0:00:30]} 15. h3 {[%emt 0:00:00]} Ra6 {[%emt 0:00:00]} 16. Bg5 {[%emt 0:00:00]} f6 {[%emt 0:00:00]} 17. Bf4 {[%emt 0:00:00]} g5 {[%emt 0:00:00]} 18. Bh2 {[%emt 0:00:00]} g4 {[%emt 0:00:00]} 19. h4 {[%emt 0:00:00]} Nf5 {[%emt 0:00:00]} 20. Bg3 {[%emt 0:00:00]} Nxg3 {[%emt 0:00:00]} 21. fxg3 {[%emt 0:00:00]} Bd6 {[%emt 0:00:00]} 22. Bxd5 {[%emt 0:00:00]} Bxg3 {[%emt 0:00:00]} 23. Bc4 {[%emt 0:00:00]} f5 {[%emt 0:00:00]} 24. Bxa6 {[%emt 0:00:00]} Qxh4 {[%emt 0:00:00]} 25. Re8+ {[%emt 0:00:00]} Kxe8 {[%emt 0:00:00]} 26. Qe2+ {[%emt 0:00:00]} Kd8 {[%emt 0:00:00]} 0-1

[Event "LEM Niedersachsen-A-Open 2025"]
[Site "Verden"]
[Date "2025.01.04"]
[Round "6.5"]
[White "Moeller, Jonas"]
[Black "Becker, Stefan"]
[Result "0-1"]
[ECO "B33"]
[WhiteElo "1934"]
[BlackElo "2036"]
[Annotator "NA RC"]
[PlyCount "58"]
[EventDate "2024.12.27"]
[EventType "swiss"]
[EventCountry "GER"]
[SourceTitle "playchess.com"]
[Source "ChessBase"]
[SourceQuality "1"]
[TimeControl "40/5400+30:1800+30"]

1. e4 {[%emt 0:00:05]} c5 {[%emt 0:00:32]} 2. Nf3 {[%emt 0:00:05]} Nc6 {[%emt 0:00:07]} 3. d4 {[%emt 0:00:05]} cxd4 {[%emt 0:00:08]} 4. Nxd4 {[%emt 0:00:03]} Nf6 {[%emt 0:00:25]} 5. Nc3 {[%emt 0:00:04]} e5 {[%emt 0:00:09]} 6. Ndb5 {[%emt 0:00:14]} d6 {[%emt 0:00:08]} 7. Nd5 {[%emt 0:00:24]} Nxd5 {[%emt 0:00:14]} 8. exd5 {[%emt 0:00:02]} Nb8 {[%emt 0:00:09]} 9. a4 {[%emt 0:00:09]} Be7 {[%emt 0:05:00]} 10. Be2 {[%emt 0:02:14]} O-O {[%emt 0:01:07]} 11. O-O {[%emt 0:03:56]} Nd7 {[%emt 0:08:58]} 12. a5 {[%emt 0:20:02]} a6 {[%emt 0:10:17]} 13. Nc3 {[%emt 0:01:11]} f5 {[%emt 0:02:51]} 14. f4 {[%emt 0:06:48]} Bf6 {[%emt 0:03:02]} 15. Ra3 {[%emt 0:06:31]} exf4 {[%emt 0:08:51]} 16. Bxf4 {[%emt 0:00:49]} Be5 {[%emt 0:00:08]} 17. b4 {[%emt 0:09:28]} b6 {[%emt 0:06:47]} 18. Bxe5 {[%emt 0:09:06]} Nxe5 {[%emt 0:00:36]} 19. Qd4 {[%emt 0:04:33]} b5 {[%emt 0:06:44]} 20. Nd1 {[%emt 0:02:55]} Bd7 {[%emt 0:02:53]} 21. Rg3 {[%emt 0:05:07]} Qf6 {[%emt 0:11:29]} 22. Kh1 {[%emt 0:06:09]} f4 {[%emt 0:02:13]} 23. Rc3 {[%emt 0:04:07]} Qh6 {[%emt 0:05:10]} 24. Nf2 {[%emt 0:04:38]} Rae8 {[%emt 0:03:00]} 25. Nh3 {[%emt 0:05:33]} f3 {[%emt 0:00:58]} 26. Bxf3 {[%emt 0:02:19]} Bxh3 {[%emt 0:00:43]} 27. gxh3 {[%emt 0:00:13]} Qxh3 {[%emt 0:03:30]} 28. Qf2 {[%emt 0:02:30]} Rf4 {[%emt 0:06:05]} 29. Bg4 {[%emt 0:02:49]} Qxf1+ {[%emt 0:01:00]} 0-1

[Event "LEM Niedersachsen-A-Open 2025"]
[Site "Verden"]
[Date "2025.01.04"]
[Round "6.6"]
[White "Hoellman, Ludger"]
[Black "Thomas, Jeremy"]
[Result "1/2-1/2"]
[ECO "D10"]
[WhiteElo "2026"]
[BlackElo "1935"]
[Annotator "NA RC"]
[PlyCount "142"]
[EventDate "2024.12.27"]
[EventType "swiss"]
[EventCountry "GER"]
[SourceTitle "playchess.com"]
[Source "ChessBase"]
[SourceQuality "1"]
[TimeControl "40/5400+30:1800+30"]

1. d4 {[%emt 0:00:02]} d5 {[%emt 0:00:06]} 2. c4 {[%emt 0:00:04]} c6 {[%emt 0:00:14]} 3. cxd5 {[%emt 0:00:11]} cxd5 {[%emt 0:00:06]} 4. Bf4 {[%emt 0:00:04]} Nc6 {[%emt 0:00:59]} 5. e3 {[%emt 0:00:12]} Bf5 {[%emt 0:01:42]} 6. Nc3 {[%emt 0:00:30]} e6 {[%emt 0:00:30]} 7. Qb3 {[%emt 0:00:30]} Qb6 {[%emt 0:00:30]} 8. Qxb6 {[%emt 0:00:30]} axb6 {[%emt 0:00:30]} 9. Nf3 {[%emt 0:00:30]} h6 {[%emt 0:00:30]} 10. Bb5 {[%emt 0:00:30]} Nge7 {[%emt 0:00:30]} 11. Bc7 {[%emt 0:00:30]} f6 {[%emt 0:00:30]} 12. Bxb6 {[%emt 0:00:30]} Nc8 {[%emt 0:00:30]} 13. Bc5 {[%emt 0:00:30]} Kd7 {[%emt 0:00:30]} 14. O-O {[%emt 0:00:30]} Nd6 {[%emt 0:00:30]} 15. Be2 {[%emt 0:00:30]} Ne4 {[%emt 0:00:30]} 16. Nxe4 {[%emt 0:00:30]} Bxe4 {[%emt 0:00:30]} 17. Rfc1 {[%emt 0:00:30]} Bd6 {[%emt 0:00:30]} 18. Nd2 {[%emt 0:00:30]} Bg6 {[%emt 0:00:30]} 19. Bb5 {[%emt 0:00:30]} Rhc8 {[%emt 0:00:30]} 20. Nb3 {[%emt 0:00:30]} Ke7 {[%emt 0:00:30]} 21. a3 {[%emt 0:00:30]} Be8 {[%emt 0:00:30]} 22. f3 {[%emt 0:00:30]} b6 {[%emt 0:00:30]} 23. Bxd6+ {[%emt 0:00:30]} Kxd6 {[%emt 0:00:30]} 24. Bd3 {[%emt 1:01:58]} e5 {[%emt 0:41:25]} 25. Kf2 {[%emt 0:07:11]} exd4 {[%emt 0:02:08]} 26. Nxd4 {[%emt 0:00:51]} Nxd4 {[%emt 0:00:28]} 27. exd4 {[%emt 0:00:05]} Bc6 {[%emt 0:02:48]} 28. Bf5 {[%emt 0:00:30]} Bd7 {[%emt 0:04:01]} 29. Bd3 {[%emt 0:09:58]} Bc6 {[%emt 0:00:54]} 30. Bg6 {[%emt 0:02:13]} Rc7 {[%emt 0:00:45]} 31. Rc3 {[%emt 0:00:49]} Ra4 {[%emt 0:03:26]} 32. b4 {[%emt 0:02:38]} Rca7 {[%emt 0:00:54]} 33. Rxc6+ {[%emt 0:05:47]} Kxc6 {[%emt 0:00:33]} 34. Be8+ {[%emt 0:00:06]} Kd6 {[%emt 0:01:03]} 35. Bxa4 {[%emt 0:00:06]} Rxa4 {[%emt 0:00:06]} 36. Ke3 {[%emt 0:00:12]} b5 {[%emt 0:02:16]} 37. Kd3 {[%emt 0:02:06]} Ra8 {[%emt 0:00:20]} 38. Ra2 {[%emt 0:00:32]} Ra7 {[%emt 0:00:49]} 39. Kc3 {[%emt 0:00:48]} Rc7+ {[%emt 0:00:06]} 40. Kb3 {[%emt 0:00:11]} Re7 {[%emt 0:00:51]} 41. Rc2 {[%emt 0:32:42]} Re3+ {[%emt 0:30:46]} 42. Rc3 {[%emt 0:00:44]} Re2 {[%emt 0:00:15]} 43. g4 {[%emt 0:00:08]} Rxh2 {[%emt 0:00:38]} 44. a4 {[%emt 0:00:11]} bxa4+ {[%emt 0:00:21]} 45. Kxa4 {[%emt 0:00:02]} Rd2 {[%emt 0:03:36]} 46. b5 {[%emt 0:00:00]} Rxd4+ {[%emt 0:00:00]} 47. Ka5 {[%emt 0:00:00]} Rc4 {[%emt 0:00:00]} 48. Rb3 {[%emt 0:00:00]} Kc7 {[%emt 0:00:00]} 49. Re3 {[%emt 0:00:00]} Kb7 {[%emt 0:00:00]} 50. Re6 {[%emt 0:00:00]} Rc7 {[%emt 0:00:00]} 51. Rd6 {[%emt 0:00:00]} Rf7 {[%emt 0:00:00]} 52. Rxd5 {[%emt 0:00:00]} g6 {[%emt 0:00:00]} 53. Rd6 {[%emt 0:00:00]} h5 {[%emt 0:00:00]} 54. gxh5 {[%emt 0:00:00]} gxh5 {[%emt 0:00:00]} 55. Rb6+ {[%emt 0:00:00]} Ka7 {[%emt 0:00:00]} 56. Ra6+ {[%emt 0:00:00]} Kb8 {[%emt 0:00:00]} 57. Rb6+ {[%emt 0:00:00]} Ka7 {[%emt 0:00:00]} 58. Ra6+ {[%emt 0:00:00]} Kb8 {[%emt 0:00:00]} 59. Re6 {[%emt 0:00:10]} Kb7 {[%emt 0:00:00]} 60. Re4 {[%emt 0:03:45]} Rh7 {[%emt 0:00:00]} 61. Rh4 {[%emt 0:00:27]} f5 {[%emt 0:00:00]} 62. Kb4 {[%emt 0:02:21]} Kb6 {[%emt 0:00:00]} 63. Kc4 {[%emt 0:00:37]} Rh8 {[%emt 0:00:00]} 64. Kd5 {[%emt 0:00:47]} Kxb5 {[%emt 0:00:00]} 65. f4 {[%emt 0:00:17]} Kb6 {[%emt 0:00:00]} 66. Ke5 {[%emt 0:00:25]} Kc5 {[%emt 0:00:40]} 67. Kxf5 {[%emt 0:01:05]} Kd5 {[%emt 0:00:20]} 68. Kf6 {[%emt 0:00:24]} Rf8+ {[%emt 0:01:02]} 69. Kg6 {[%emt 0:01:51]} Ke4 {[%emt 0:00:24]} 70. f5+ {[%emt 0:00:49]} Ke5 {[%emt 0:00:04]} 71. Rxh5 {[%emt 0:00:08]} Rf6+ {[%emt 0:00:06]} 1/2-1/2